fUST/lending_fUST_20251206
["ID","MTS","AMOUNT","RATE_DAILY","PERIOD"]
[396429093,1764964346560,-1092.74,0.0002,2]
[396429094,1764964346572,-500.0,0.0002,2]
[396429095,1764964346582,-402.88044581,0.0002,2]
[396429096,1764964346591,-1405.79,0.0002,2]
[396429097,1764964346601,-1078.91,0.0002,2]
[396429098,1764964346611,-500.0,0.0002,2]
[396429099,1764964346621,-1311.8,0.0002,2]
[396429100,1764964346630,-1734.17,0.0002,2]
[396429101,1764964346639,-698.12,0.0002,2]
[396429102,1764964346649,-1866.07,0.0002,2]
[396429103,1764964346658,-500.0,0.0002,2]
[396429104,1764964346668,-500.0,0.0002,2]
[396429105,1764964346677,-1534.72,0.0002,2]
[396429106,1764964346687,-524.96,0.0002,2]
[396429107,1764964346696,-2060.56,0.0002,2]
[396429108,1764964346706,-500.0,0.0002,2]
[396429109,1764964346716,-701.23,0.0002,2]
[396429110,1764964346725,-673.73,0.0002,2]
[396429111,1764964346734,-1698.62,0.0002,2]
[396429112,1764964346743,-658.93,0.0002,2]
[396429113,1764964346753,-742.38,0.0002,2]
[396429114,1764964346762,-747.63,0.0002,2]
[396429115,1764964346772,-667.01,0.0002,2]
[396429116,1764964346781,-500.0,0.0002,2]
[396429117,1764964346791,-721.72,0.0002,2]
[396429118,1764964346800,-1151.69,0.0002,2]
[396429119,1764964346810,-628.52443644,0.0002,2]
[396429120,1764964346819,-991.55,0.0002,2]
[396429121,1764964347029,-500.0,0.0002,2]
[396429122,1764964347040,-596.6,0.0002,2]
[396429123,1764964347049,-1963.89,0.0002,2]
[396429124,1764964347059,-2056.09,0.0002,2]
[396429125,1764964347070,-1932.03,0.0002,2]
[396429126,1764964347080,-1925.2,0.0002,2]
[396429127,1764964347091,-694.04,0.0002,2]
[396429128,1764964347101,-1279.51,0.0002,2]
[396429129,1764964347112,-552.82,0.0002,2]
[396429130,1764964347121,-1066.32,0.0002,2]
[396429131,1764964347131,-500.0,0.0002,2]
[396429132,1764964347141,-1282.6,0.0002,2]
[396429133,1764964347150,-1077.48,0.0002,2]
[396429134,1764964347159,-1056.93,0.0002,2]
[396429135,1764964347169,-1405.18,0.0002,2]
[396429136,1764964347178,-798.61,0.0002,2]
[396429137,1764964347187,-500.0,0.0002,2]
[396429138,1764964347196,-1114.7,0.0002,2]
[396429139,1764964347206,-867.37,0.0002,2]
[396429140,1764964347215,-500.0,0.0002,2]
[396429141,1764964347224,-773.03,0.0002,2]
[396429142,1764964347234,-2394.89,0.0002,2]
[396429143,1764964347243,-500.4,0.0002,2]
[396429144,1764964347253,-500.0,0.0002,2]
[396429145,1764964347262,-1140.55,0.0002,2]
[396429146,1764964347272,-500.0,0.0002,2]
[396429147,1764964347290,-753.55,0.0002,2]
[396429148,1764964347299,-500.0,0.0002,2]
[396429149,1764964347309,-1160.45,0.0002,2]
[396429150,1764964347318,-507.01,0.0002,2]
[396429151,1764964347327,-801.76,0.0002,2]
[396429152,1764964347337,-542.43,0.0002,2]
[396429153,1764964347347,-2713.85,0.0002,2]
[396429154,1764964347356,-500.0,0.0002,2]
[396429155,1764964347365,-914.46,0.0002,2]
[396429156,1764964347375,-500.0,0.0002,2]
[396429157,1764964347384,-4419.03,0.0002,2]
[396429158,1764964347394,-526.41,0.0002,2]
[396429159,1764964347403,-588.91,0.0002,2]
[396429160,1764964347412,-981.61,0.0002,2]
[396429161,1764964347422,-1146.46,0.0002,2]
[396429162,1764964347431,-562.03,0.0002,2]
[396429163,1764964347440,-1195.63,0.0002,2]
[396429164,1764964347449,-500.0,0.0002,2]
[396429165,1764964347459,-2202.96,0.0002,2]
[396429166,1764964347468,-500.0,0.0002,2]
[396429167,1764964347478,-769.64,0.0002,2]
[396429168,1764964347488,-813.86,0.0002,2]
[396429169,1764964347497,-530.06,0.0002,2]
[396429170,1764964347507,-500.0,0.0002,2]
[396429171,1764964347516,-708.5,0.0002,2]
[396429172,1764964347525,-2092.31,0.0002,2]
[396429173,1764964347535,-500.0,0.0002,2]
[396429174,1764964347544,-528.45,0.0002,2]
[396429175,1764964347555,-500.0,0.0002,2]
[396429176,1764964347564,-532.79,0.0002,2]
[396429177,1764964347574,-1131.46,0.0002,2]
[396429178,1764964347584,-1131.9,0.0002,2]
[396429179,1764964347594,-500.0,0.0002,2]
[396429180,1764964347603,-608.86,0.0002,2]
[396429181,1764964347612,-880.35,0.0002,2]
[396429182,1764964347622,-784.6,0.0002,2]
[396429183,1764964347631,-500.0,0.0002,2]
[396429184,1764964347641,-589.81,0.0002,2]
[396429185,1764964347651,-500.0,0.0002,2]
[396429186,1764964347660,-500.0,0.0002,2]
[396429187,1764964347670,-537.52,0.0002,2]
[396429188,1764964347679,-1014.04,0.0002,2]
[396429189,1764964347690,-2220.46,0.0002,2]
[396429190,1764964347700,-2190.66,0.0002,2]
[396429191,1764964347709,-1158.75,0.0002,2]
[396429192,1764964347718,-681.06,0.0002,2]
[396429193,1764964347728,-286.48862455,0.0002,2]
[396429194,1764964347738,-500.0,0.0002,2]
[396429195,1764964347747,-2115.78,0.0002,2]
[396429196,1764964347760,-500.0,0.0002,2]
[396429197,1764964347770,-766.35,0.0002,2]
[396429198,1764964347780,-966.12,0.0002,2]
[396429199,1764964347790,-914.28,0.0002,2]
[396429200,1764964347800,-982.55,0.0002,2]
[396429201,1764964347810,-500.0,0.0002,2]
[396429202,1764964347820,-936.35,0.0002,2]
[396429203,1764964347830,-500.0,0.0002,2]
[396429204,1764964347839,-500.0,0.0002,2]
[396429205,1764964347849,-500.0,0.0002,2]
[396429206,1764964347858,-500.0,0.0002,2]
[396429207,1764964347868,-749.63,0.0002,2]
[396429208,1764964347878,-1641.15,0.0002,2]
[396429209,1764964347887,-1076.77,0.0002,2]
[396429210,1764964347896,-500.0,0.0002,2]
[396429211,1764964347906,-500.0,0.0002,2]
[396429212,1764964347916,-603.68,0.0002,2]
[396429213,1764964347926,-698.96,0.0002,2]
[396429214,1764964347937,-1666.18,0.0002,2]
[396429215,1764964347947,-671.97,0.0002,2]
[396429216,1764964347957,-502.19,0.0002,2]
[396429217,1764964347967,-2087.17,0.0002,2]
[396429218,1764964347976,-500.0,0.0002,2]
[396429219,1764964347986,-500.0,0.0002,2]
[396429220,1764964347996,-516.65,0.0002,2]
[396429221,1764964348006,-500.0,0.0002,2]
[396429222,1764964348016,-2037.83,0.0002,2]
[396429223,1764964348030,-501.13,0.0002,2]
[396429224,1764964348040,-500.0,0.0002,2]
[396429225,1764964348049,-571.62,0.0002,2]
[396429226,1764964348058,-1758.23,0.0002,2]
[396429227,1764964348070,-4101.23,0.0002,2]
[396429228,1764964348079,-1128.95,0.0002,2]
[396429229,1764964348088,-2336.08,0.0002,2]
[396429230,1764964348101,-735.18,0.0002,2]
[396429231,1764964348110,-656.91,0.0002,2]
[396429232,1764964348120,-942.22,0.0002,2]
[396429233,1764964348129,-606.67,0.0002,2]
[396429234,1764964348139,-866.26,0.0002,2]
[396429235,1764964348148,-500.0,0.0002,2]
[396429236,1764964348158,-500.13,0.0002,2]
[396429237,1764964348167,-500.0,0.0002,2]
[396429238,1764964348177,-748.38,0.0002,2]
[396429239,1764964348187,-784.77,0.0002,2]
[396429240,1764964348197,-500.0,0.0002,2]
[396429241,1764964348207,-3000.65,0.0002,2]
[396429242,1764964348216,-632.24,0.0002,2]
[396429243,1764964348226,-525.35,0.0002,2]
[396429244,1764964348236,-500.0,0.0002,2]
[396429245,1764964348246,-734.19,0.0002,2]
[396429246,1764964348255,-500.0,0.0002,2]
[396429247,1764964348265,-500.0,0.0002,2]
[396429248,1764964348275,-1121.55,0.0002,2]
[396429249,1764964348285,-4195.91,0.0002,2]
[396429250,1764964348295,-500.0,0.0002,2]
[396429251,1764964348305,-1169.87,0.0002,2]
[396429252,1764964348315,-500.0,0.0002,2]
[396429253,1764964348325,-500.0,0.0002,2]
[396429254,1764964348335,-1721.78,0.0002,2]
[396429255,1764964348345,-797.93,0.0002,2]
[396429256,1764964348355,-500.0,0.0002,2]
[396429257,1764964348365,-3352.24,0.0002,2]
[396429258,1764964348375,-701.25,0.0002,2]
[396429259,1764964348384,-1865.02,0.0002,2]
[396429260,1764964348394,-352.257895,0.0002,2]
[396429261,1764964348404,-547.35,0.0002,2]
[396429262,1764964348413,-1140.86,0.0002,2]
[396429263,1764964348423,-1061.3,0.0002,2]
[396429264,1764964348432,-581.3,0.0002,2]
[396429265,1764964348442,-561.53,0.0002,2]
[396429266,1764964348451,-1248.52,0.0002,2]
[396429267,1764964348461,-565.64,0.0002,2]
[396429268,1764964348470,-1569.73,0.0002,2]
[396429269,1764964348479,-1818.55,0.0002,2]
[396429270,1764964348489,-522.2,0.0002,2]
[396429271,1764964348500,-875.06,0.0002,2]
[396429272,1764964348509,-500.0,0.0002,2]
[396429273,1764964348519,-1114.54,0.0002,2]
[396429274,1764964348528,-500.0,0.0002,2]
[396429275,1764964348538,-500.0,0.0002,2]
[396429276,1764964348548,-1202.31,0.0002,2]
[396429277,1764964348558,-1019.58,0.0002,2]
[396429278,1764964348568,-1283.59,0.0002,2]
[396429279,1764964348578,-1200.75,0.0002,2]
[396429280,1764964348588,-506.37,0.0002,2]
[396429281,1764964348598,-500.0,0.0002,2]
[396429282,1764964348608,-1231.58,0.0002,2]
[396429283,1764964348618,-654.39,0.0002,2]
[396429284,1764964348629,-506.68,0.0002,2]
[396429285,1764964348639,-500.0,0.0002,2]
[396429286,1764964348649,-500.0,0.0002,2]
[396429287,1764964348659,-1113.91,0.0002,2]
[396429288,1764964348669,-663.62,0.0002,2]
[396429289,1764964348680,-753.47,0.0002,2]
[396429290,1764964348689,-1445.18,0.0002,2]
[396429291,1764964348700,-500.0,0.0002,2]
[396429292,1764964348709,-500.0,0.0002,2]
[396429293,1764964348719,-780.5,0.0002,2]
[396429294,1764964348730,-889.08,0.0002,2]
[396429295,1764964348740,-500.0,0.0002,2]
[396429296,1764964348749,-2835.2,0.0002,2]
[396429297,1764964348759,-500.0,0.0002,2]
[396429298,1764964348769,-1729.46,0.0002,2]
[396429299,1764964348779,-1979.46,0.0002,2]
[396429300,1764964348789,-575.86,0.0002,2]
[396429301,1764964348798,-500.0,0.0002,2]
[396429302,1764964348807,-1316.03,0.0002,2]
[396429303,1764964348816,-1835.34,0.0002,2]
[396429304,1764964348825,-908.87,0.0002,2]
[396429305,1764964348834,-653.14,0.0002,2]
[396429306,1764964348844,-557.4,0.0002,2]
[396429307,1764964348853,-500.0,0.0002,2]
[396429308,1764964348863,-1274.81,0.0002,2]
[396429309,1764964348873,-978.78,0.0002,2]
[396429310,1764964348882,-500.0,0.0002,2]
[396429311,1764964348892,-500.0,0.0002,2]
[396429312,1764964348902,-1825.48,0.0002,2]
[396429313,1764964348912,-1459.61,0.0002,2]
[396429314,1764964348923,-500.0,0.0002,2]
[396429315,1764964348933,-1362.88,0.0002,2]
[396429316,1764964348943,-2330.6,0.0002,2]
[396429317,1764964348952,-2129.96,0.0002,2]
[396429318,1764964348963,-500.0,0.0002,2]
[396429319,1764964348974,-500.0,0.0002,2]
[396429320,1764964348983,-664.95,0.0002,2]
[396429321,1764964348992,-1189.18,0.0002,2]
[396429322,1764964349003,-500.0,0.0002,2]
[396429323,1764964349012,-989.95,0.0002,2]
[396429324,1764964349027,-302.86700937,0.0002,2]
[396429325,1764964349037,-1775.43,0.0002,2]
[396429326,1764964349047,-1334.27,0.0002,2]
[396429327,1764964349058,-500.0,0.0002,2]
[396429328,1764964349067,-500.0,0.0002,2]
[396429329,1764964349077,-500.0,0.0002,2]
[396429330,1764964349087,-796.25,0.0002,2]
[396429331,1764964349097,-500.0,0.0002,2]
[396429332,1764964349108,-4147.96,0.0002,2]
[396429333,1764964349117,-500.0,0.0002,2]
[396429334,1764964349126,-677.16,0.0002,2]
[396429335,1764964349136,-3508.67,0.0002,2]
[396429336,1764964349146,-3856.98,0.0002,2]
[396429337,1764964349156,-1405.37,0.0002,2]
[396429338,1764964349166,-500.0,0.0002,2]
[396429339,1764964349176,-8546.16,0.0002,2]
[396429340,1764964349185,-595.52,0.0002,2]
[396429341,1764964349195,-2012.27,0.0002,2]
[396429342,1764964349205,-760.14,0.0002,2]
[396429343,1764964349214,-869.37,0.0002,2]
[396429344,1764964349224,-2862.43,0.0002,2]
[396429345,1764964349233,-500.0,0.0002,2]
[396429346,1764964349244,-500.0,0.0002,2]
[396429347,1764964349254,-1260.61,0.0002,2]
[396429348,1764964349264,-27168.59,0.0002,2]
[396429349,1764964349275,-500.0,0.0002,2]
[396429350,1764964349284,-2573.74,0.0002,2]
[396429351,1764964349294,-500.0,0.0002,2]
[396429352,1764964349304,-1519.74,0.0002,2]
[396429353,1764964349315,-3739.24,0.0002,2]
[396429354,1764964349324,-837.97,0.0002,2]
[396429355,1764964349334,-2210.97,0.0002,2]
[396429356,1764964349344,-879.68,0.0002,2]
[396429357,1764964349356,-934.83,0.0002,2]
[396429358,1764964349365,-1534.0,0.0002,2]
[396429359,1764964349375,-150.078913,0.0002,2]
[396429360,1764964349385,-613.38,0.0002,2]
[396429361,1764964349394,-1145.34,0.0002,2]
[396429362,1764964349404,-7737.29,0.0002,2]
[396429363,1764964349413,-2897.13,0.0002,2]
[396429364,1764964349421,-2245.52,0.0002,2]
[396429365,1764964349430,-3989.26,0.0002,2]
[396429366,1764964349440,-1590.89,0.0002,2]
[396429367,1764964349449,-4880.82,0.0002,2]
[396429368,1764964349458,-500.0,0.0002,2]
[396429369,1764964349467,-500.0,0.0002,2]
[396429370,1764964349477,-2037.18,0.0002,2]
[396429371,1764964349566,-500.0,0.0002,2]
[396429372,1764964349576,-1939.29,0.0002,2]
[396429373,1764964349587,-500.0,0.0002,2]
[396429374,1764964349598,-603.68,0.0002,2]
[396429375,1764964349607,-586.39,0.0002,2]
[396429376,1764964349616,-3745.52,0.0002,2]
[396429377,1764964349626,-500.0,0.0002,2]
[396429378,1764964349636,-1761.7,0.0002,2]
[396429379,1764964349645,-500.0,0.0002,2]
[396429380,1764964349655,-500.0,0.0002,2]
[396429381,1764964349664,-500.0,0.0002,2]
[396429382,1764964349674,-1154.72,0.0002,2]
[396429383,1764964349684,-8082.89,0.0002,2]
[396429384,1764964349693,-1316.55,0.0002,2]
[396429385,1764964349702,-1061.67,0.0002,2]
[396429386,1764964349712,-1179.67,0.0002,2]
[396429387,1764964349723,-808.12,0.0002,2]
[396429388,1764964349733,-500.0,0.0002,2]
[396429389,1764964349742,-500.0,0.0002,2]
[396429390,1764964349752,-470.78812775,0.0002,2]
[396429391,1764964349762,-548.83,0.0002,2]
[396429392,1764964349772,-2735.13,0.0002,2]
[396429393,1764964349782,-2878.01,0.0002,2]
[396429394,1764964349791,-500.0,0.0002,2]
[396429395,1764964349801,-6762.23,0.0002,2]
[396429396,1764964349812,-1977.79,0.0002,2]
[396429397,1764964349821,-500.0,0.0002,2]
[396429398,1764964349831,-512.63,0.0002,2]
[396429399,1764964349840,-690.27,0.0002,2]
[396429400,1764964349850,-531.05,0.0002,2]
[396429401,1764964349860,-588.28,0.0002,2]
[396429402,1764964349871,-500.0,0.0002,2]
[396429403,1764964349881,-583.05247812,0.0002,2]
[396429404,1764964349892,-1011.28,0.0002,2]
[396429405,1764964349902,-6262.41,0.0002,2]
[396429406,1764964349913,-2046.2,0.0002,2]
[396429407,1764964349924,-2730.7,0.0002,2]
[396429408,1764964349934,-776.59,0.0002,2]
[396429409,1764964349943,-500.0,0.0002,2]
[396429410,1764964349953,-632.99,0.0002,2]
[396429411,1764964349962,-9293.72,0.0002,2]
[396429412,1764964349972,-500.0,0.0002,2]
[396429413,1764964349981,-1523.9,0.0002,2]
[396429414,1764964349990,-2206.65,0.0002,2]
[396429415,1764964350001,-1216.27,0.0002,2]
[396429416,1764964350011,-1517.87,0.0002,2]
[396429417,1764964350026,-890.47,0.0002,2]
[396429418,1764964350035,-500.0,0.0002,2]
[396429419,1764964350044,-678.08,0.0002,2]
[396429420,1764964350053,-12607.12,0.0002,2]
[396429421,1764964350064,-1261.52,0.0002,2]
[396429422,1764964350074,-3411.98,0.0002,2]
[396429423,1764964350083,-500.0,0.0002,2]
[396429424,1764964350093,-8433.96,0.0002,2]
[396429425,1764964350104,-500.0,0.0002,2]
[396429426,1764964350114,-4594.16,0.0002,2]
[396429427,1764964350125,-639.2,0.0002,2]
[396429428,1764964350134,-601.94,0.0002,2]
[396429429,1764964350145,-500.0,0.0002,2]
[396429430,1764964350155,-557.9,0.0002,2]
[396429431,1764964350165,-768.56,0.0002,2]
[396429432,1764964350174,-564.07,0.0002,2]
[396429433,1764964350184,-2955.98,0.0002,2]
[396429434,1764964350193,-1537.53,0.0002,2]
[396429435,1764964350202,-1822.27,0.0002,2]
[396429436,1764964350212,-1145.09,0.0002,2]
[396429437,1764964350221,-1807.2,0.0002,2]
[396429438,1764964350231,-3671.84,0.0002,2]
[396429439,1764964350240,-1517.42,0.0002,2]
[396429440,1764964350249,-1021.51,0.0002,2]
[396429441,1764964350259,-500.0,0.0002,2]
[396429442,1764964350270,-408.00281607,0.0002,2]
[396429443,1764964350281,-15606.7,0.0002,2]
[396429444,1764964350290,-1718.3,0.0002,2]
[396429445,1764964350299,-7505.89,0.0002,2]
[396429446,1764964350308,-500.0,0.0002,2]
[396429447,1764964350317,-629.93,0.0002,2]
[396429448,1764964350327,-4537.01,0.0002,2]
[396429449,1764964350336,-1160.08,0.0002,2]
[396429450,1764964350345,-500.0,0.0002,2]
[396429451,1764964350355,-6149.82,0.0002,2]
[396429452,1764964350364,-2978.24,0.0002,2]
[396429453,1764964350373,-500.0,0.0002,2]
[396429454,1764964350382,-566.43,0.0002,2]
[396429455,1764964350391,-1483.55,0.0002,2]
[396429456,1764964350400,-2769.97,0.0002,2]
[396429457,1764964350410,-1249.37,0.0002,2]
[396429458,1764964350419,-500.0,0.0002,2]
[396429459,1764964350428,-603.32,0.0002,2]
[396429460,1764964350438,-500.0,0.0002,2]
[396429461,1764964350447,-2626.61,0.0002,2]
[396429462,1764964350457,-4802.09,0.0002,2]
[396429463,1764964350466,-999.44,0.0002,2]
[396429464,1764964350475,-1503.75,0.0002,2]
[396429465,1764964350484,-500.0,0.0002,2]
[396429466,1764964350493,-19450.21,0.0002,2]
[396429467,1764964350502,-1573.31,0.0002,2]
[396429468,1764964350512,-1075.02,0.0002,2]
[396429469,1764964350522,-1106.6,0.0002,2]
[396429470,1764964350531,-840.72,0.0002,2]
[396429471,1764964350541,-500.0,0.0002,2]
[396429472,1764964350550,-1613.52,0.0002,2]
[396429473,1764964350560,-500.0,0.0002,2]
[396429474,1764964350569,-518.4,0.0002,2]
[396429475,1764964350579,-500.0,0.0002,2]
[396429476,1764964350588,-3055.31,0.0002,2]
[396429477,1764964350597,-994.67,0.0002,2]
[396429478,1764964350606,-994.61,0.0002,2]
[396429479,1764964350615,-5779.12,0.0002,2]
[396429480,1764964350624,-541.54,0.0002,2]
[396429481,1764964350634,-500.0,0.0002,2]
[396429482,1764964350643,-2703.83,0.0002,2]
[396429483,1764964350653,-723.64,0.0002,2]
[396429484,1764964350662,-500.0,0.0002,2]
[396429485,1764964350671,-13490.98,0.0002,2]
[396429486,1764964350680,-2375.57,0.0002,2]
[396429487,1764964350689,-500.0,0.0002,2]
[396429488,1764964350699,-1855.42,0.0002,2]
[396429489,1764964350708,-1108.58,0.0002,2]
[396429490,1764964350718,-981.84,0.0002,2]
[396429491,1764964350727,-378.91042917,0.0002,2]
[396429492,1764964350737,-500.0,0.0002,2]
[396429493,1764964350746,-8333.33,0.0002,2]
[396429494,1764964350756,-505.07,0.0002,2]
[396429495,1764964350766,-3168.21,0.0002,2]
[396429496,1764964350777,-8522.94,0.0002,2]
[396429497,1764964350786,-500.0,0.0002,2]
[396429498,1764964350795,-2974.3,0.0002,2]
[396429499,1764964350804,-882.76,0.0002,2]
[396429500,1764964350814,-500.0,0.0002,2]
[396429501,1764964350823,-773.39,0.0002,2]
[396429502,1764964350833,-500.0,0.0002,2]
[396429503,1764964350843,-1466.62,0.0002,2]
[396429504,1764964350854,-1900.64,0.0002,2]
[396429505,1764964350863,-5166.32,0.0002,2]
[396429506,1764964350873,-500.0,0.0002,2]
[396429507,1764964350883,-500.0,0.0002,2]
[396429508,1764964350892,-559.78,0.0002,2]
[396429509,1764964350902,-500.0,0.0002,2]
[396429510,1764964350911,-579.43,0.0002,2]
[396429511,1764964350920,-1126.56,0.0002,2]
[396429512,1764964350929,-531.72,0.0002,2]
[396429513,1764964350939,-7493.2,0.0002,2]
[396429514,1764964350948,-1357.94,0.0002,2]
[396429515,1764964350958,-500.0,0.0002,2]
[396429516,1764964350967,-2140.67,0.0002,2]
[396429517,1764964350977,-504.84,0.0002,2]
[396429518,1764964350987,-1456.29,0.0002,2]
[396429519,1764964350996,-1852.77,0.0002,2]
[396429520,1764964351006,-5290.3,0.0002,2]
[396429521,1764964351015,-500.0,0.0002,2]
[396429522,1764964351029,-18021.5,0.0002,2]
[396429523,1764964351039,-5946.49,0.0002,2]
[396429524,1764964351048,-1141.14,0.0002,2]
[396429525,1764964351058,-5755.4,0.0002,2]
[396429526,1764964351069,-899.33,0.0002,2]
[396429527,1764964351078,-500.0,0.0002,2]
[396429528,1764964351089,-1193.75,0.0002,2]
[396429529,1764964351101,-500.0,0.0002,2]
[396429530,1764964351110,-18224.67,0.0002,2]
[396429531,1764964351119,-2555.22,0.0002,2]
[396429532,1764964351130,-262.14626139,0.0002,2]
[396429533,1764964351139,-15992.22,0.0002,2]
[396429534,1764964351148,-500.0,0.0002,2]
[396429535,1764964351158,-500.0,0.0002,2]
[396429536,1764964351167,-2246.86,0.0002,2]
[396429537,1764964351176,-500.0,0.0002,2]
[396429538,1764964351186,-1396.97,0.0002,2]
[396429539,1764964351195,-699.92,0.0002,2]
[396429540,1764964351205,-1327.48,0.0002,2]
[396429541,1764964351215,-3223.39,0.0002,2]
[396429542,1764964351224,-1347.5,0.0002,2]
[396429543,1764964351234,-2513.49,0.0002,2]
[396429544,1764964351243,-667.1,0.0002,2]
[396429545,1764964351253,-500.0,0.0002,2]
[396429546,1764964351264,-2175.03,0.0002,2]
[396429547,1764964351274,-40156.73,0.0002,2]
[396429548,1764964351284,-906.92,0.0002,2]
[396429549,1764964351294,-500.0,0.0002,2]
[396429550,1764964351303,-10167.34,0.0002,2]
[396429551,1764964351312,-3602.82,0.0002,2]
[396429552,1764964351322,-690.39,0.0002,2]
[396429553,1764964351331,-570.25,0.0002,2]
[396429554,1764964351342,-3182.83,0.0002,2]
[396429555,1764964351351,-500.0,0.0002,2]
[396429556,1764964351362,-2410.62,0.0002,2]
[396429557,1764964351372,-2260.75,0.0002,2]
[396429558,1764964351382,-1031.43,0.0002,2]
[396429559,1764964351393,-871.12,0.0002,2]
[396429560,1764964351403,-500.0,0.0002,2]
[396429561,1764964351413,-1240.63,0.0002,2]
[396429562,1764964351422,-500.0,0.0002,2]
[396429563,1764964351432,-3147.39,0.0002,2]
[396429564,1764964351441,-535.52,0.0002,2]
[396429565,1764964351451,-3754.05,0.0002,2]
[396429566,1764964351460,-2393.17,0.0002,2]
[396429567,1764964351469,-640.85,0.0002,2]
[396429568,1764964351479,-2634.96,0.0002,2]
[396429569,1764964351488,-700.33,0.0002,2]
[396429570,1764964351497,-500.0,0.0002,2]
[396429571,1764964351507,-500.0,0.0002,2]
[396429572,1764964351516,-3889.17,0.0002,2]
[396429573,1764964351528,-500.0,0.0002,2]
[396429574,1764964351537,-786.42,0.0002,2]
[396429575,1764964351546,-500.0,0.0002,2]
[396429576,1764964351556,-1453.14,0.0002,2]
[396429577,1764964351565,-500.0,0.0002,2]
[396429578,1764964351574,-2259.44,0.0002,2]
[396429579,1764964351583,-642.0,0.0002,2]
[396429580,1764964351592,-1000.0,0.0002,2]
[396429581,1764964351602,-641.8132546,0.00020045,30]
[396429582,1764964351611,-500.0,0.000201,7]
[396429583,1764964351621,-730.848927,0.00020187,2]
[396429584,1764964351630,-560.0,0.00020192,2]
[396429585,1764964351639,-509.72550856,0.00020208,2]
[396429586,1764964351649,-472.44219008,0.00020273,2]
[396429587,1764964351661,-674.84,0.00020273,2]
[396429588,1764964351670,-759.28,0.00020273,2]
[396429589,1764964351680,-500.0,0.00020273,2]
[396429590,1764964351689,-821.01,0.00020273,2]
[396429591,1764964351698,-3248.83,0.00020273,2]
[396429592,1764964351708,-500.0,0.00020273,2]